fUST/lending_fUST_20251126
["ID","MTS","AMOUNT","RATE_DAILY","PERIOD"]
[394930429,1764153046909,-500.0,0.0001405,2]
[394930430,1764153046919,-500.0,0.0001409,2]
[394930431,1764153046930,-500.0,0.00014091,2]
[394930432,1764153046940,-500.0,0.00014109,2]
[394930433,1764153046950,-500.0,0.00014161,2]
[394930434,1764153046959,-1000.0,0.00014221,2]
[394930435,1764153046969,-500.0,0.00014221,2]
[394930436,1764153046979,-1000.0,0.00014221,2]
[394930437,1764153046988,-1000.0,0.00014221,2]
[394930438,1764153046997,-1000.0,0.00014221,2]
[394930439,1764153047006,-500.0,0.00014221,2]
[394930440,1764153047015,-160.0,0.00014246,2]
[394930441,1764153047025,-315.28509568,0.00014246,2]
[394930442,1764153047035,-200.0,0.00014246,2]
[394930443,1764153047044,-200.0,0.00014246,2]
[394930444,1764153047053,-604.31,0.00014246,2]
[394930445,1764153047062,-1000.0,0.00014247,2]
[394930446,1764153047071,-375.78254604,0.00014247,2]
[394930447,1764153047080,-1000.0,0.00014247,2]
[394930448,1764153047090,-1000.0,0.00014247,2]
[394930449,1764153047099,-1000.0,0.00014247,2]
[394930450,1764153047108,-1000.0,0.00014247,2]
[394930451,1764153047117,-1000.0,0.00014247,2]
[394930452,1764153047126,-1000.0,0.00014247,2]
[394930453,1764153047135,-1000.0,0.00014247,2]
[394930454,1764153047144,-1000.0,0.00014247,2]
[394930455,1764153047155,-1000.0,0.00014247,2]
[394930456,1764153047165,-1000.0,0.00014247,2]
[394930457,1764153047175,-1000.0,0.00014247,2]
[394930458,1764153047184,-1000.0,0.00014247,2]
[394930459,1764153047195,-294.68119812,0.00014247,2]
[394930460,1764153047206,-1000.0,0.00014247,2]
[394930461,1764153047217,-1000.0,0.00014247,2]
[394930462,1764153047226,-547.52614199,0.00014247,2]
[394930463,1764153047235,-260.0,0.00014247,2]
[394930464,1764153047244,-500.0,0.00014272,2]
[394930465,1764153047253,-500.0,0.00014292,2]
[394930466,1764153047262,-500.0,0.00014294,2]
[394930467,1764153047272,-500.0,0.00014353,2]
[394930468,1764153047283,-251.11897888,0.00014384,2]
[394930469,1764153047292,-500.0,0.00014389,2]
[394930470,1764153047303,-500.0,0.00014401,2]
[394930471,1764153047314,-2000.0,0.00014414,3]
[394930472,1764153047325,-656.22954351,0.0001442,2]
[394930473,1764153047334,-2000.0,0.00014423,3]
[394930474,1764153047344,-2000.0,0.00014432,3]
[394930475,1764153047362,-2000.0,0.00014432,3]
[394930476,1764153047371,-2000.0,0.00014441,3]
[394930477,1764153047380,-2000.0,0.00014441,3]
[394930478,1764153047390,-2000.0,0.00014441,3]
[394930479,1764153047403,-2000.0,0.00014441,3]
[394930480,1764153047412,-2000.0,0.0001445,3]
[394930481,1764153047422,-2000.0,0.0001445,3]
[394930482,1764153047433,-2000.0,0.0001445,3]
[394930483,1764153047445,-2000.0,0.0001445,3]
[394930484,1764153047455,-2000.0,0.00014458,3]
[394930485,1764153047465,-2000.0,0.00014458,3]
[394930486,1764153047475,-2000.0,0.00014458,3]
[394930487,1764153047484,-2000.0,0.00014458,3]
[394930488,1764153047495,-2000.0,0.00014458,3]
[394930489,1764153047505,-2000.0,0.00014467,3]
[394930490,1764153047515,-2000.0,0.00014467,3]
[394930491,1764153047524,-2000.0,0.00014467,3]
[394930492,1764153047533,-2000.0,0.00014467,3]
[394930493,1764153047543,-2000.0,0.00014467,3]
[394930494,1764153047552,-500.0,0.00014473,2]
[394930495,1764153047561,-158.84956284,0.00014473,2]
[394930496,1764153047571,-500.0,0.00014473,2]
[394930497,1764153047581,-500.0,0.00014473,2]
[394930498,1764153047590,-500.0,0.00014473,2]
[394930499,1764153047599,-563.38600227,0.00014473,2]
[394930500,1764153047608,-500.0,0.00014473,2]
[394930501,1764153047617,-158.23774831,0.00014473,2]
[394930502,1764153047626,-500.0,0.00014473,2]
[394930503,1764153047636,-500.0,0.00014473,2]
[394930504,1764153047645,-516.79507257,0.00014473,2]
[394930505,1764153047654,-500.0,0.00014473,2]
[394930506,1764153047663,-500.0,0.00014473,2]
[394930507,1764153047672,-500.0,0.00014473,2]
[394930508,1764153047681,-500.0,0.00014473,2]
[394930509,1764153047691,-500.0,0.00014473,2]
[394930510,1764153047700,-512.43771657,0.00014473,2]
[394930511,1764153047709,-500.0,0.00014473,2]
[394930512,1764153047719,-500.0,0.00014473,2]
[394930513,1764153047730,-157.69920608,0.00014473,2]
[394930514,1764153047740,-634.35198507,0.00014473,2]
[394930515,1764153047750,-500.0,0.00014473,2]
[394930516,1764153047761,-500.0,0.00014473,2]
[394930517,1764153047771,-500.0,0.00014473,2]
[394930518,1764153047781,-500.0,0.00014473,2]
[394930519,1764153047790,-500.0,0.00014473,2]
[394930520,1764153047800,-165.59755515,0.00014473,2]
[394930521,1764153047810,-500.0,0.00014473,2]
[394930522,1764153047820,-500.0,0.00014473,2]
[394930523,1764153047830,-160.03735336,0.00014473,2]
[394930524,1764153047840,-500.0,0.00014473,2]
[394930525,1764153047851,-163.02632636,0.00014473,2]
[394930526,1764153047861,-500.0,0.00014473,2]
[394930527,1764153047872,-214.692559,0.00014473,2]
[394930528,1764153047883,-500.0,0.00014473,2]
[394930529,1764153047892,-500.0,0.00014473,2]
[394930530,1764153047902,-500.0,0.00014473,2]
[394930531,1764153047911,-500.0,0.00014473,2]
[394930532,1764153047921,-500.0,0.00014473,2]
[394930533,1764153047931,-500.0,0.00014473,2]
[394930534,1764153047940,-500.0,0.00014473,2]
[394930535,1764153047950,-600.1179231,0.00014473,2]
[394930536,1764153047960,-500.0,0.00014473,2]
[394930537,1764153047970,-447.93874079,0.00014473,2]
[394930538,1764153047979,-500.0,0.00014473,2]
[394930539,1764153047989,-500.0,0.00014473,2]
[394930540,1764153047999,-158.23774985,0.00014473,2]
[394930541,1764153048009,-500.0,0.00014473,2]
[394930542,1764153048019,-500.0,0.00014473,2]
[394930543,1764153048029,-500.0,0.00014473,2]
[394930544,1764153048039,-500.0,0.00014473,2]
[394930545,1764153048048,-522.96788532,0.00014473,2]
[394930546,1764153048058,-500.0,0.00014473,2]
[394930547,1764153048068,-500.0,0.00014473,2]
[394930548,1764153048077,-500.0,0.00014473,2]
[394930549,1764153048086,-454.28487277,0.00014473,2]
[394930550,1764153048096,-500.0,0.00014473,2]
[394930551,1764153048106,-500.0,0.00014473,2]
[394930552,1764153048115,-500.0,0.00014473,2]
[394930553,1764153048124,-500.0,0.00014473,2]
[394930554,1764153048135,-500.0,0.00014473,2]
[394930555,1764153048145,-500.0,0.00014473,2]
[394930556,1764153048154,-521.83920914,0.00014473,2]
[394930557,1764153048164,-500.0,0.00014473,2]
[394930558,1764153048174,-500.0,0.00014473,2]
[394930559,1764153048183,-500.0,0.00014473,2]
[394930560,1764153048195,-500.0,0.00014473,2]
[394930561,1764153048204,-2000.0,0.00014476,3]
[394930562,1764153048214,-2000.0,0.00014476,3]
[394930563,1764153048223,-2000.0,0.00014476,3]
[394930564,1764153048232,-2000.0,0.00014476,3]
[394930565,1764153048241,-2000.0,0.00014476,3]
[394930566,1764153048250,-2000.0,0.00014485,3]
[394930567,1764153048261,-2000.0,0.00014485,3]
[394930568,1764153048271,-2000.0,0.00014485,3]
[394930569,1764153048280,-2000.0,0.00014485,3]
[394930570,1764153048335,-2000.0,0.00014485,3]
[394930571,1764153048347,-2000.0,0.00014494,3]
[394930572,1764153048358,-2000.0,0.00014494,3]
[394930573,1764153048370,-2000.0,0.00014494,3]
[394930574,1764153048380,-2000.0,0.00014494,3]
[394930575,1764153048389,-2000.0,0.00014494,3]
[394930576,1764153048398,-2000.0,0.00014502,3]
[394930577,1764153048407,-2000.0,0.00014502,3]
[394930578,1764153048416,-2000.0,0.00014502,3]
[394930579,1764153048426,-2000.0,0.00014502,3]
[394930580,1764153048440,-2000.0,0.00014502,3]
[394930581,1764153048450,-2000.0,0.00014511,3]
[394930582,1764153048459,-2000.0,0.00014511,3]
[394930583,1764153048468,-2000.0,0.00014511,3]
[394930584,1764153048478,-2000.0,0.00014511,3]
[394930585,1764153048487,-2000.0,0.00014511,3]
[394930586,1764153048496,-2000.0,0.0001452,3]
[394930587,1764153048506,-2000.0,0.0001452,3]
[394930588,1764153048516,-2000.0,0.0001452,3]
[394930589,1764153048525,-2000.0,0.0001452,3]
[394930590,1764153048534,-2000.0,0.0001452,3]
[394930591,1764153048543,-5152.5225474,0.00014521,2]
[394930592,1764153048552,-500.0,0.00014523,2]
[394930593,1764153048562,-175.67,0.00014533,2]
[394930594,1764153048571,-500.0,0.00014534,2]
[394930595,1764153048580,-500.0,0.0001454,2]
[394930596,1764153048590,-500.0,0.00014547,2]
[394930597,1764153048599,-500.0,0.0001462,2]
[394930598,1764153048608,-151.0,0.000147,2]
[394930599,1764153048617,-1500.0,0.00014768,2]
[394930600,1764153048625,-1500.0,0.00014768,2]
[394930601,1764153048635,-1500.0,0.00014768,2]
[394930602,1764153048643,-1500.0,0.00014768,2]
[394930603,1764153048652,-200.0,0.00014772,2]
[394930604,1764153048661,-500.0,0.00014773,2]
[394930605,1764153048670,-500.0,0.00014773,2]
[394930606,1764153048678,-157.56558941,0.00014773,2]
[394930607,1764153048687,-500.0,0.00014773,2]
[394930608,1764153048696,-500.0,0.00014773,2]
[394930609,1764153048704,-159.22398357,0.00014773,2]
[394930610,1764153048713,-234.65597818,0.00014773,2]
[394930611,1764153048721,-302.80235268,0.00014773,2]
[394930612,1764153048730,-158.23693159,0.00014773,2]
[394930613,1764153048739,-158.03770204,0.00014773,2]
[394930614,1764153048747,-500.0,0.00014773,2]
[394930615,1764153048756,-500.0,0.00014773,2]
[394930616,1764153048765,-421.78629627,0.00014773,2]
[394930617,1764153048774,-160.0,0.00014794,2]
[394930618,1764153048783,-200.0,0.00014794,2]
[394930619,1764153048792,-200.0,0.00014794,2]
[394930620,1764153048800,-200.0,0.00014794,2]
[394930621,1764153048809,-1500.0,0.00014795,2]
[394930622,1764153048817,-1500.0,0.00014795,2]
[394930623,1764153048826,-1020.2180418,0.00014795,2]
[394930624,1764153048834,-1500.0,0.00014795,2]
[394930625,1764153048843,-204.82104941,0.00014795,2]
[394930626,1764153048852,-1500.0,0.00014795,2]
[394930627,1764153048861,-1500.0,0.00014795,2]
[394930628,1764153048870,-1145.15718956,0.00014795,2]
[394930629,1764153048879,-859.67499859,0.00014795,2]
[394930630,1764153048888,-1500.0,0.00014795,2]
[394930631,1764153048896,-1500.0,0.00014795,2]
[394930632,1764153048905,-1514.51972693,0.00014795,2]
[394930633,1764153048914,-1500.0,0.00014795,2]
[394930634,1764153048922,-655.91276897,0.00014795,2]
[394930635,1764153048931,-1500.0,0.00014795,2]
[394930636,1764153048940,-360.0,0.00014795,2]
[394930637,1764153048949,-500.0,0.00014863,2]
[394930638,1764153048958,-162.8801038,0.00014873,2]
[394930639,1764153048966,-200.0,0.00014881,2]
[394930640,1764153048975,-200.0,0.00014881,2]
[394930641,1764153048984,-201.93695125,0.00014881,2]
[394930642,1764153048993,-100000.0,0.00014882,2]
[394930643,1764153049002,-591.81423176,0.000149,2]
[394930644,1764153049012,-1356.2099855,0.000149,2]
[394930645,1764153049021,-1000.0,0.00014908,2]
[394930646,1764153049030,-237.0,0.00014908,2]
[394930647,1764153049039,-260.4103811,0.00014932,2]
[394930648,1764153049048,-500.0,0.00014932,2]
[394930649,1764153049056,-2000.0,0.00015,2]
[394930650,1764153049065,-2000.0,0.00015,2]
[394930651,1764153049074,-1013.51610014,0.00015,2]
[394930652,1764153049083,-375.17765749,0.00015,2]
[394930653,1764153049092,-453.14339131,0.00015,2]
[394930654,1764153049100,-500.0,0.00015015,2]
[394930655,1764153049109,-746.57524287,0.00015021,2]
[394930656,1764153049118,-1000.0,0.00015021,2]
[394930657,1764153049126,-429.52047386,0.00015021,2]
[394930658,1764153049135,-200.86636137,0.00015021,2]
[394930659,1764153049144,-1000.0,0.00015021,2]
[394930660,1764153049152,-251.45014542,0.00015021,2]
[394930661,1764153049161,-707.05195293,0.00015021,2]
[394930662,1764153049170,-1000.0,0.00015021,2]
[394930663,1764153049179,-322.28689203,0.00015021,2]
[394930664,1764153049188,-1000.0,0.00015021,2]
[394930665,1764153049197,-1000.0,0.00015021,2]
[394930666,1764153049206,-1000.0,0.00015021,2]
[394930667,1764153049215,-1093.9483069,0.00015021,2]
[394930668,1764153049224,-1000.0,0.00015021,2]
[394930669,1764153049234,-1000.0,0.00015021,2]
[394930670,1764153049242,-1000.0,0.00015021,2]
[394930671,1764153049251,-1000.0,0.00015021,2]
[394930672,1764153049260,-1000.0,0.00015021,2]
[394930673,1764153049268,-1000.0,0.00015021,2]
[394930674,1764153049277,-1000.0,0.00015021,2]
[394930675,1764153049286,-1000.0,0.00015021,2]
[394930676,1764153049295,-684.38079377,0.00015021,2]
[394930677,1764153049303,-1000.0,0.00015021,2]
[394930678,1764153049312,-1000.0,0.00015021,2]
[394930679,1764153049321,-1000.0,0.00015021,2]
[394930680,1764153049331,-1000.0,0.00015021,2]
[394930681,1764153049340,-1000.0,0.00015021,2]
[394930682,1764153049349,-1000.0,0.00015021,2]
[394930683,1764153049359,-1000.0,0.00015021,2]
[394930684,1764153049368,-1000.0,0.00015021,2]
[394930685,1764153049378,-837.73225838,0.00015021,2]
[394930686,1764153049390,-811.28262974,0.00015021,2]
[394930687,1764153049399,-1000.0,0.00015021,2]
[394930688,1764153049410,-1000.0,0.00015021,2]
[394930689,1764153049420,-1000.0,0.00015021,2]
[394930690,1764153049430,-1000.0,0.00015021,2]
[394930691,1764153049443,-1000.0,0.00015021,2]
[394930692,1764153049452,-1000.0,0.00015021,2]
[394930693,1764153049462,-1000.0,0.00015021,2]
[394930694,1764153049472,-1000.0,0.00015021,2]
[394930695,1764153049482,-1000.0,0.00015021,2]
[394930696,1764153049492,-675.10487116,0.00015021,2]
[394930697,1764153049501,-1000.0,0.00015021,2]
[394930698,1764153049513,-1000.0,0.00015021,2]
[394930699,1764153049523,-522.31552349,0.00015021,2]
[394930700,1764153049532,-1000.0,0.00015021,2]
[394930701,1764153049542,-1000.0,0.00015021,2]
[394930702,1764153049554,-1000.0,0.00015021,2]
[394930703,1764153049563,-221.00983237,0.00015021,2]
[394930704,1764153049572,-1000.0,0.00015021,2]
[394930705,1764153049582,-175.65877232,0.00015031,2]
[394930706,1764153049591,-500.0,0.00015039,2]
[394930707,1764153049600,-500.0,0.00015047,2]
[394930708,1764153049609,-180.91415331,0.00015068,2]
[394930709,1764153049618,-3333.0,0.00015068,2]
[394930710,1764153049630,-1659.42045657,0.00015068,2]
[394930711,1764153049641,-559.298227,0.00015068,2]
[394930712,1764153049652,-800.0,0.00015068,2]
[394930713,1764153049662,-500.0,0.00015198,2]
[394930714,1764153049672,-500.0,0.00015258,2]
[394930715,1764153049683,-500.0,0.00015285,2]
[394930716,1764153049692,-500.0,0.0001529,2]
[394930717,1764153049702,-158.90730445,0.00015315,2]
[394930718,1764153049711,-2000.0,0.00015316,2]
[394930719,1764153049721,-2000.0,0.00015316,2]
[394930720,1764153049732,-2000.0,0.00015316,2]
[394930721,1764153049742,-2000.0,0.00015316,2]
[394930722,1764153049751,-200.0,0.0001532,2]
[394930723,1764153049761,-1000.0,0.00015321,2]
[394930724,1764153049770,-1000.0,0.00015321,2]
[394930725,1764153049780,-1000.0,0.00015321,2]
[394930726,1764153049789,-1000.0,0.00015321,2]
[394930727,1764153049798,-500.83677284,0.00015321,2]
[394930728,1764153049807,-1000.0,0.00015321,2]
[394930729,1764153049816,-500.0,0.00015327,2]
[394930730,1764153049826,-213.87020324,0.00015341,2]
[394930731,1764153049835,-604.31,0.00015342,2]
[394930732,1764153049845,-460.0,0.00015342,2]
[394930733,1764153049854,-2083.20914486,0.00015342,2]
[394930734,1764153049863,-2000.0,0.00015342,2]
[394930735,1764153049873,-2000.0,0.00015342,2]
[394930736,1764153049884,-2000.0,0.00015342,2]
[394930737,1764153049894,-2000.0,0.00015342,2]
[394930738,1764153049903,-2000.0,0.00015342,2]
[394930739,1764153049914,-2000.0,0.00015342,2]
[394930740,1764153049923,-2000.0,0.00015342,2]
[394930741,1764153049933,-2000.0,0.00015342,2]
[394930742,1764153049942,-500.0,0.00015395,2]
[394930743,1764153049953,-500.0,0.00015459,2]
[394930744,1764153049963,-500.0,0.00015463,2]
[394930745,1764153049973,-270.0455652,0.0001548,2]
[394930746,1764153049983,-175.67,0.00015486,2]
[394930747,1764153049994,-500.0,0.00015557,2]
[394930748,1764153050003,-1500.0,0.00015568,2]
[394930749,1764153050018,-1500.0,0.00015568,2]
[394930750,1764153050027,-1500.0,0.00015568,2]
[394930751,1764153050037,-1500.0,0.00015568,2]
[394930752,1764153050047,-1500.0,0.00015568,2]
[394930753,1764153050058,-1500.0,0.00015568,2]
[394930754,1764153050069,-1500.0,0.00015568,2]
[394930755,1764153050079,-1500.0,0.00015568,2]
[394930756,1764153050090,-700.73706143,0.00015568,2]
[394930757,1764153050101,-435.13198802,0.00015568,2]
[394930758,1764153050111,-1414.94007014,0.00015568,2]
[394930759,1764153050124,-1500.0,0.00015568,2]
[394930760,1764153050135,-1500.0,0.00015568,2]
[394930761,1764153050144,-1500.0,0.00015568,2]
[394930762,1764153050153,-1500.0,0.00015568,2]
[394930763,1764153050162,-1500.0,0.00015568,2]
[394930764,1764153050172,-1068.12968006,0.00015568,2]
[394930765,1764153050186,-1500.0,0.00015568,2]
[394930766,1764153050197,-1500.0,0.00015568,2]
[394930767,1764153050207,-1500.0,0.00015568,2]
[394930768,1764153050217,-1500.0,0.00015568,2]
[394930769,1764153050226,-1500.0,0.00015568,2]
[394930770,1764153050235,-1500.0,0.00015568,2]
[394930771,1764153050244,-1500.0,0.00015568,2]
[394930772,1764153050254,-1500.0,0.00015568,2]
[394930773,1764153050264,-1500.0,0.00015568,2]
[394930774,1764153050273,-1500.0,0.00015568,2]
[394930775,1764153050282,-1500.0,0.00015568,2]
[394930776,1764153050292,-1631.63122973,0.00015568,2]
[394930777,1764153050302,-1500.0,0.00015568,2]
[394930778,1764153050311,-1500.0,0.00015568,2]
[394930779,1764153050321,-1500.0,0.00015568,2]
[394930780,1764153050330,-1500.0,0.00015568,2]
[394930781,1764153050340,-1500.0,0.00015568,2]
[394930782,1764153050349,-1500.0,0.00015568,2]
[394930783,1764153050359,-1593.22543266,0.00015568,2]
[394930784,1764153050368,-1500.0,0.00015568,2]
[394930785,1764153050377,-500.0,0.00015578,2]
[394930786,1764153050388,-293.85068442,0.00015603,2]
[394930787,1764153050397,-3333.0,0.00015616,2]
[394930788,1764153050408,-500.0,0.0001564,2]
[394930789,1764153050417,-500.0,0.00015657,2]
[394930790,1764153050427,-500.0,0.00015669,2]
[394930791,1764153050441,-500.0,0.00015794,2]
[394930792,1764153050450,-500.0,0.00015806,2]
[394930793,1764153050460,-500.0,0.00015819,2]
[394930794,1764153050469,-1000.0,0.00015839,5]
[394930795,1764153050480,-500.0,0.00015853,2]
[394930796,1764153050490,-227.07740084,0.00015864,2]
[394930797,1764153050499,-2500.0,0.00015864,2]
[394930798,1764153050509,-2500.0,0.00015864,2]
[394930799,1764153050520,-2500.0,0.00015864,2]
[394930800,1764153050529,-1500.0,0.00015868,2]
[394930801,1764153050539,-1500.0,0.00015868,2]
[394930802,1764153050548,-1500.0,0.00015868,2]
[394930803,1764153050557,-167.88689925,0.00015868,2]
[394930804,1764153050567,-1500.0,0.00015868,2]
[394930805,1764153050577,-500.0,0.00015874,2]
[394930806,1764153050587,-500.0,0.00015888,2]
[394930807,1764153050598,-560.0,0.0001589,2]
[394930808,1764153050610,-2500.0,0.0001589,2]
[394930809,1764153050620,-983.43494744,0.0001589,2]
[394930810,1764153050631,-1124.84544993,0.0001589,2]
[394930811,1764153050640,-1506.871955,0.0001589,2]
[394930812,1764153050650,-1132.99273853,0.0001589,2]
[394930813,1764153050660,-2500.0,0.0001589,2]
[394930814,1764153050670,-2500.0,0.0001589,2]
[394930815,1764153050680,-2500.0,0.0001589,2]
[394930816,1764153050692,-500.0,0.00015908,2]
[394930817,1764153050702,-440.50829197,0.00015922,2]
[394930818,1764153050712,-500.0,0.00015951,2]
[394930819,1764153050722,-500.0,0.00015978,2]
[394930820,1764153050731,-353.43546982,0.00016,3]
[394930821,1764153050740,-214.71658431,0.00016,2]
[394930822,1764153050749,-1164.7,0.00016,2]
[394930823,1764153050759,-1164.699999,0.00016,2]
[394930824,1764153050768,-290.44290234,0.00016,2]
[394930825,1764153050778,-280.03725112,0.00016028,2]
[394930826,1764153050789,-500.0,0.00016066,2]
[394930827,1764153050799,-500.0,0.00016087,2]
[394930828,1764153050810,-822.0,0.000161,2]
[394930829,1764153050820,-806.19259935,0.00016116,2]
[394930830,1764153050829,-2000.0,0.00016116,2]
[394930831,1764153050840,-950.37342563,0.00016116,2]
[394930832,1764153050851,-1690.84519632,0.00016116,2]
[394930833,1764153050862,-2000.0,0.00016116,2]
[394930834,1764153050872,-2000.0,0.00016116,2]
[394930835,1764153050883,-2000.0,0.00016116,2]
[394930836,1764153050893,-2000.0,0.00016116,2]
[394930837,1764153050903,-2000.0,0.00016116,2]
[394930838,1764153050914,-2000.0,0.00016116,2]
[394930839,1764153050924,-2000.0,0.00016116,2]
[394930840,1764153050933,-2000.0,0.00016116,2]
[394930841,1764153050942,-2000.0,0.00016116,2]
[394930842,1764153050951,-2000.0,0.00016116,2]
[394930843,1764153050962,-2000.0,0.00016116,2]
[394930844,1764153050972,-2000.0,0.00016116,2]
[394930845,1764153050981,-2000.0,0.00016116,2]
[394930846,1764153050991,-2000.0,0.00016116,2]
[394930847,1764153051000,-1825.40685241,0.00016116,2]
[394930848,1764153051009,-2000.0,0.00016116,2]
[394930849,1764153051019,-908.95161242,0.00016116,2]
[394930850,1764153051029,-621.60403977,0.00016116,2]
[394930851,1764153051038,-1654.77962236,0.00016116,2]
[394930852,1764153051047,-2000.0,0.00016116,2]
[394930853,1764153051056,-1016.16482421,0.00016116,2]
[394930854,1764153051066,-2000.0,0.00016116,2]
[394930855,1764153051075,-2000.0,0.00016116,2]
[394930856,1764153051085,-1221.59443648,0.00016116,2]
[394930857,1764153051095,-2000.0,0.00016116,2]
[394930858,1764153051105,-2000.0,0.00016116,2]
[394930859,1764153051114,-2000.0,0.00016116,2]
[394930860,1764153051124,-2000.0,0.00016116,2]
[394930861,1764153051133,-500.0,0.00016123,2]
[394930862,1764153051142,-1600.0,0.00016164,2]
[394930863,1764153051152,-3333.0,0.00016164,2]
[394930864,1764153051161,-330.0,0.00016302,2]
[394930865,1764153051171,-499.3,0.0001633,2]
[394930866,1764153051180,-928.713789,0.00016367,2]
[394930867,1764153051190,-550.71744936,0.00016382,2]
[394930868,1764153051199,-852.80993485,0.00016411,2]
[394930869,1764153051209,-3000.0,0.00016412,2]
[394930870,1764153051219,-3000.0,0.00016412,2]
[394930871,1764153051229,-3000.0,0.00016412,2]
[394930872,1764153051238,-2000.0,0.00016416,2]
[394930873,1764153051247,-2000.0,0.00016416,2]
[394930874,1764153051257,-166.0846123,0.00016416,2]
[394930875,1764153051267,-2000.0,0.00016416,2]
[394930876,1764153051276,-562.89606228,0.00016437,2]
[394930877,1764153051290,-604.31,0.00016438,2]
[394930878,1764153051300,-660.0,0.00016438,2]
[394930879,1764153051309,-500.0,0.00016438,2]
[394930880,1764153051319,-500.0,0.00016438,2]
[394930881,1764153051328,-500.0,0.00016438,2]
[394930882,1764153051338,-447.59418954,0.00016438,2]
[394930883,1764153051348,-500.0,0.00016438,2]
[394930884,1764153051359,-589.28713546,0.00016438,2]
[394930885,1764153051368,-200.0,0.00016438,3]
[394930886,1764153051378,-154.17807448,0.00016438,2]
[394930887,1764153051388,-300.0,0.00016438,2]
[394930888,1764153051398,-173.14838,0.00016438,2]
[394930889,1764153051407,-173.14838,0.00016438,2]
[394930890,1764153051417,-173.14838,0.00016438,2]
[394930891,1764153051428,-173.14838,0.00016438,2]
[394930892,1764153051443,-173.14838,0.00016438,2]
[394930893,1764153051453,-173.14838,0.00016438,2]
[394930894,1764153051463,-173.14838,0.00016438,2]
[394930895,1764153051473,-173.14838,0.00016438,2]
[394930896,1764153051483,-173.14838,0.00016438,2]
[394930897,1764153051492,-173.14838,0.00016438,2]
[394930898,1764153051503,-173.14838,0.00016438,2]
[394930899,1764153051514,-173.14838,0.00016438,2]
[394930900,1764153051525,-173.14838,0.00016438,2]
[394930901,1764153051537,-173.14838,0.00016438,2]
[394930902,1764153051546,-173.14838,0.00016438,2]
[394930903,1764153051556,-173.14838,0.00016438,2]
[394930904,1764153051567,-173.14838,0.00016438,2]
[394930905,1764153051577,-173.14838,0.00016438,2]
[394930906,1764153051588,-173.14838,0.00016438,2]
[394930907,1764153051599,-173.148387,0.00016438,2]
[394930908,1764153051610,-151.0,0.00016438,2]
[394930909,1764153051620,-151.0,0.00016438,2]
[394930910,1764153051630,-151.0,0.00016438,2]
[394930911,1764153051639,-151.0,0.00016438,2]
[394930912,1764153051649,-151.0,0.00016438,2]
[394930913,1764153051658,-151.0,0.00016438,2]
[394930914,1764153051668,-151.0,0.00016438,2]
[394930915,1764153051678,-151.0,0.00016438,2]
[394930916,1764153051688,-151.0,0.00016438,2]
[394930917,1764153051698,-151.0,0.00016438,2]
[394930918,1764153051708,-151.0,0.00016438,2]
[394930919,1764153051718,-151.0,0.00016438,2]
[394930920,1764153051730,-151.0,0.00016438,2]
[394930921,1764153051861,-151.0,0.00016438,2]
[394930922,1764153051872,-244.68713,0.00016438,2]
[394930923,1764153051882,-203.04465466,0.00016438,2]
[394930924,1764153051891,-2000.0,0.00016438,2]
[394930925,1764153051900,-3000.0,0.00016438,2]
[394930926,1764153051909,-532.28713046,0.00016438,2]
[394930927,1764153051918,-2551.61329528,0.00016438,2]
[394930928,1764153051927,-258.68618882,0.00016438,2]